fUSD/lending_fUSD_20251012
["ID","MTS","AMOUNT","RATE_DAILY","PERIOD"]
[391022051,1760296248989,-350.0,0.00017225,2]
[391022052,1760296248998,-2351.0,0.00017241,2]
[391022053,1760296249007,-2252.41,0.0001726,2]
[391022054,1760296249016,-500.0,0.0001726,2]
[391022055,1760296249025,-500.0,0.0001726,2]
[391022056,1760296249035,-465.3,0.0001726,2]
[391022057,1760296249044,-350.0,0.00017267,2]
[391022058,1760296249053,-350.0,0.00017267,2]
[391022059,1760296249063,-694.77,0.0001727,2]
[391022060,1760296249072,-955.95,0.0001727,2]
[391022061,1760296249081,-161.84,0.00017283,2]
[391022062,1760296249091,-587.0,0.00017285,2]
[391022063,1760296249100,-5824.50176395,0.000173,2]
[391022064,1760296249110,-5242.05158755,0.000173,2]
[391022065,1760296249119,-287.61899177,0.00017322,2]
[391022066,1760296249128,-346.92554585,0.0001733,2]
[391022067,1760296249138,-1600.0,0.00017343,2]
[391022068,1760296249148,-749.56052645,0.00017366,15]
[391022069,1760296249158,-500.0,0.00017446,2]
[391022070,1760296249168,-500.0,0.00017466,2]
[391022071,1760296249178,-500.0,0.00017466,2]
[391022072,1760296249187,-500.0,0.00017466,2]
[391022073,1760296249196,-500.0,0.00017466,2]
[391022074,1760296249206,-191.40641208,0.00017487,2]
[391022075,1760296249215,-1852.55,0.00017491,2]
[391022076,1760296249225,-343.22852102,0.00017494,2]
[391022077,1760296249234,-300.0,0.00017499,2]
[391022078,1760296249245,-300.0,0.00017499,2]
[391022079,1760296249256,-300.0,0.00017499,2]
[391022080,1760296249266,-300.0,0.00017499,2]
[391022081,1760296249275,-300.0,0.00017499,2]
[391022082,1760296249284,-300.0,0.00017499,2]
[391022083,1760296249293,-300.0,0.00017499,2]
[391022084,1760296249302,-300.0,0.00017499,2]
[391022085,1760296249311,-300.0,0.00017499,2]
[391022086,1760296249321,-377.59142868,0.00017499,2]
[391022087,1760296249331,-5824.50176395,0.000175,2]
[391022088,1760296249342,-1000000.0,0.000175,2]
[391022089,1760296249352,-2252.41,0.00017534,2]
[391022090,1760296249363,-500.0,0.00017534,2]
[391022091,1760296249373,-560.8,0.00017534,2]
[391022092,1760296249382,-465.3,0.00017534,2]
[391022093,1760296249392,-171.40897944,0.00017534,2]
[391022094,1760296249402,-500.0,0.00017573,2]
[391022095,1760296249411,-500.0,0.00017573,2]
[391022096,1760296249420,-500.1806526,0.00017573,2]
[391022097,1760296249430,-500.0,0.00017573,2]
[391022098,1760296249440,-500.0,0.00017573,2]
[391022099,1760296249450,-500.0,0.00017573,2]
[391022100,1760296249460,-500.0,0.00017573,2]
[391022101,1760296249469,-500.0,0.00017573,2]
[391022102,1760296249481,-171.84255033,0.00017573,2]
[391022103,1760296249491,-160.50412325,0.00017573,2]
[391022104,1760296249500,-500.0,0.00017573,2]
[391022105,1760296249511,-591.44956845,0.00017573,2]
[391022106,1760296249520,-500.0,0.00017573,2]
[391022107,1760296249529,-458.75602084,0.00017573,2]
[391022108,1760296249538,-500.0,0.00017573,2]
[391022109,1760296249547,-500.0,0.00017573,2]
[391022110,1760296249556,-166.53716815,0.00017573,2]
[391022111,1760296249566,-500.0,0.00017573,2]
[391022112,1760296249575,-500.0,0.00017573,2]
[391022113,1760296249584,-500.0,0.00017573,2]
[391022114,1760296249594,-160.26507117,0.00017573,2]
[391022115,1760296249605,-500.0,0.00017573,2]
[391022116,1760296249614,-500.0,0.00017573,2]
[391022117,1760296249624,-324.64733131,0.00017573,2]
[391022118,1760296249633,-500.0,0.00017573,2]
[391022119,1760296249643,-160.23242881,0.00017573,2]
[391022120,1760296249651,-500.0,0.00017573,2]
[391022121,1760296249660,-160.25535337,0.00017573,2]
[391022122,1760296249669,-500.0,0.00017573,2]
[391022123,1760296249679,-500.0,0.00017573,2]
[391022124,1760296249688,-500.0,0.00017573,2]
[391022125,1760296249697,-500.0,0.00017573,2]
[391022126,1760296249706,-500.0,0.00017573,2]
[391022127,1760296249716,-500.0,0.00017573,2]
[391022128,1760296249725,-500.0,0.00017573,2]
[391022129,1760296249734,-500.0,0.00017573,2]
[391022130,1760296249744,-500.0,0.00017573,2]
[391022131,1760296249753,-500.0,0.00017573,2]
[391022132,1760296249764,-278.69649516,0.00017573,2]
[391022133,1760296249774,-500.0,0.00017573,2]
[391022134,1760296249783,-162.58766952,0.00017573,2]
[391022135,1760296249792,-516.13221123,0.00017573,2]
[391022136,1760296249802,-500.0,0.00017573,2]
[391022137,1760296249811,-340.08587045,0.00017573,2]
[391022138,1760296249822,-217.43803534,0.00017573,2]
[391022139,1760296249832,-259.62050585,0.00017573,2]
[391022140,1760296249841,-4076.40627866,0.00017616,2]
[391022141,1760296249851,-749.56052645,0.00017624,16]
[391022142,1760296249861,-730.48322297,0.00017685,2]
[391022143,1760296249871,-5824.50176395,0.000177,2]
[391022144,1760296249881,-3000.0,0.00017712,2]
[391022145,1760296249894,-354.33,0.0001772,2]
[391022146,1760296249905,-269.91608199,0.00017726,2]
[391022147,1760296249914,-150.99,0.00017728,2]
[391022148,1760296249924,-9999.99,0.00017728,2]
[391022149,1760296249935,-419.09,0.00017728,2]
[391022150,1760296249944,-499.99,0.00017728,2]
[391022151,1760296249952,-500.0,0.0001774,2]
[391022152,1760296249962,-500.0,0.0001774,2]
[391022153,1760296249971,-1852.55,0.00017765,2]
[391022154,1760296249980,-300.0,0.00017807,2]
[391022155,1760296249989,-300.0,0.00017807,2]
[391022156,1760296249998,-300.0,0.00017807,2]
[391022157,1760296250010,-300.0,0.00017807,2]
[391022158,1760296250019,-300.0,0.00017807,2]
[391022159,1760296250027,-300.0,0.00017807,2]
[391022160,1760296250037,-304.95081989,0.00017807,2]
[391022161,1760296250047,-300.0,0.00017807,2]
[391022162,1760296250057,-2252.41,0.00017808,2]
[391022163,1760296250067,-465.3,0.00017808,2]
[391022164,1760296250077,-10000.0,0.00017808,13]
[391022165,1760296250087,-10000.0,0.00017808,13]
[391022166,1760296250097,-10000.0,0.00017808,13]
[391022167,1760296250106,-10000.0,0.00017808,13]
[391022168,1760296250115,-10000.0,0.00017808,13]
[391022169,1760296250124,-9629.46522844,0.00017808,13]
[391022170,1760296250134,-269.91608199,0.00017808,2]
[391022171,1760296250143,-171.58,0.00017842,2]
[391022172,1760296250151,-2036.45595,0.0001785,2]
[391022173,1760296250163,-269.91608199,0.00017863,2]
[391022174,1760296250172,-749.56052645,0.00017881,18]
[391022175,1760296250182,-5824.50176395,0.000179,2]
[391022176,1760296250191,-191.40641208,0.00017918,2]
[391022177,1760296250201,-269.91608199,0.00017945,2]
[391022178,1760296250211,-161.53,0.00017957,2]
[391022179,1760296250221,-400.0,0.0001797,2]
[391022180,1760296250231,-300.0,0.0001797,2]
[391022181,1760296250241,-171.58,0.00017971,2]
[391022182,1760296250250,-4121.0,0.00017994,2]
[391022183,1760296250261,-1182.0,0.00017994,2]
[391022184,1760296250269,-300.0,0.00017999,2]
[391022185,1760296250278,-300.0,0.00017999,2]
[391022186,1760296250287,-300.0,0.00017999,2]
[391022187,1760296250297,-300.0,0.00017999,2]
[391022188,1760296250307,-300.0,0.00017999,2]
[391022189,1760296250317,-300.0,0.00017999,2]
[391022190,1760296250327,-7010.7040755,0.00018,3]
[391022191,1760296250337,-729.58458863,0.00018,2]
[391022192,1760296250347,-1000.0,0.00018,3]
[391022193,1760296250355,-1000.0,0.00018,2]
[391022194,1760296250364,-1000.0,0.00018,2]
[391022195,1760296250373,-2000.0,0.00018,9]
[391022196,1760296250382,-103978.59311537,0.00018,2]
[391022197,1760296250392,-500.0,0.00018,2]
[391022198,1760296250401,-544.0,0.00018,2]
[391022199,1760296250410,-299.40144716,0.00018,2]
[391022200,1760296250419,-65927.01215238,0.00018,2]
[391022201,1760296250429,-266.98813982,0.00018,2]
[391022202,1760296250440,-10128.67647879,0.00018,2]
[391022203,1760296250449,-207.42169598,0.00018,2]
[391022204,1760296250459,-325.23142663,0.00018,2]
[391022205,1760296250470,-5824.50176395,0.00018,2]
[391022206,1760296250481,-269.91608199,0.00018,2]
[391022207,1760296250490,-200.0,0.00018,2]
[391022208,1760296250500,-500.0,0.00018014,2]
[391022209,1760296250512,-500.0,0.00018014,2]
[391022210,1760296250521,-1852.55,0.00018039,2]
[391022211,1760296250530,-2252.41,0.00018082,2]
[391022212,1760296250539,-465.3,0.00018082,2]
[391022213,1760296250548,-269.91608199,0.00018082,2]
[391022214,1760296250558,-1000.0,0.00018082,2]
[391022215,1760296250569,-1757.19568659,0.000181,2]
[391022216,1760296250579,-154.26870732,0.0001811,2]
[391022217,1760296250587,-300.0,0.0001812,2]
[391022218,1760296250596,-1000.0,0.00018121,2]
[391022219,1760296250605,-1000.0,0.00018121,2]
[391022220,1760296250616,-1000.0,0.00018121,2]
[391022221,1760296250625,-1000.0,0.00018121,2]
[391022222,1760296250634,-1000.0,0.00018121,2]
[391022223,1760296250643,-1000.0,0.00018121,2]
[391022224,1760296250652,-1000.0,0.00018121,2]
[391022225,1760296250661,-1000.0,0.00018121,2]
[391022226,1760296250670,-1000.0,0.00018121,2]
[391022227,1760296250680,-1000.0,0.00018121,2]
[391022228,1760296250689,-306.50473006,0.00018121,2]
[391022229,1760296250698,-1000.0,0.00018121,2]
[391022230,1760296250707,-1001.41921796,0.00018121,2]
[391022231,1760296250716,-1000.0,0.00018121,2]
[391022232,1760296250725,-994.81462623,0.00018121,2]
[391022233,1760296250734,-1000.0,0.00018121,2]
[391022234,1760296250743,-500.58595359,0.00018121,2]
[391022235,1760296250752,-1000.0,0.00018121,2]
[391022236,1760296250763,-1000.0,0.00018121,2]
[391022237,1760296250772,-1000.0,0.00018121,2]
[391022238,1760296250781,-171.13840662,0.00018121,2]
[391022239,1760296250791,-1000.0,0.00018121,2]
[391022240,1760296250800,-848.06551407,0.00018121,2]
[391022241,1760296250810,-1000.0,0.00018121,2]
[391022242,1760296250819,-1000.0,0.00018121,2]
[391022243,1760296250829,-1000.0,0.00018121,2]
[391022244,1760296250838,-1000.0,0.00018121,2]
[391022245,1760296250848,-1000.0,0.00018121,2]
[391022246,1760296250857,-980.48684323,0.00018121,2]
[391022247,1760296250866,-1000.0,0.00018121,2]
[391022248,1760296250875,-749.56052645,0.00018139,19]
[391022249,1760296250885,-269.91608199,0.00018164,2]
[391022250,1760296250898,-10128.67647879,0.000182,2]
[391022251,1760296250907,-207.42169598,0.000182,2]
[391022252,1760296250916,-325.23142663,0.000182,2]
[391022253,1760296250927,-269.91608199,0.00018219,2]
[391022254,1760296250936,-736.0,0.00018224,2]
[391022255,1760296250945,-300.0,0.00018246,2]
[391022256,1760296250954,-300.0,0.00018246,2]
[391022257,1760296250964,-1942.212005,0.00018247,2]
[391022258,1760296250973,-1942.212005,0.00018247,2]
[391022259,1760296250982,-1942.212005,0.00018247,2]
[391022260,1760296250991,-1942.212005,0.00018247,2]
[391022261,1760296251000,-1942.212005,0.00018247,2]
[391022262,1760296251011,-1942.212005,0.00018247,2]
[391022263,1760296251020,-1942.212005,0.00018247,2]
[391022264,1760296251029,-1942.212005,0.00018247,2]
[391022265,1760296251038,-1942.212005,0.00018247,2]
[391022266,1760296251047,-1942.212005,0.00018247,2]
[391022267,1760296251057,-1942.212005,0.00018247,2]
[391022268,1760296251066,-1942.212005,0.00018247,2]
[391022269,1760296251075,-2058.81633349,0.0001826,2]
[391022270,1760296251084,-500.0,0.00018288,2]
[391022271,1760296251094,-500.0,0.00018288,2]
[391022272,1760296251103,-269.91608199,0.00018301,2]
[391022273,1760296251113,-1852.55,0.00018313,2]
[391022274,1760296251122,-191.40641208,0.00018349,2]
[391022275,1760296251131,-300.0,0.00018355,2]
[391022276,1760296251141,-300.0,0.00018355,2]
[391022277,1760296251150,-300.0,0.00018355,2]
[391022278,1760296251160,-300.0,0.00018355,2]
[391022279,1760296251171,-300.0,0.00018355,2]
[391022280,1760296251181,-2252.41,0.00018356,2]
[391022281,1760296251191,-465.3,0.00018356,2]
[391022282,1760296251200,-269.91608199,0.00018356,2]
[391022283,1760296251210,-62613.41,0.00018356,2]
[391022284,1760296251221,-730.48322297,0.00018382,2]
[391022285,1760296251233,-749.56052645,0.00018396,20]
[391022286,1760296251244,-10128.67647879,0.000184,2]
[391022287,1760296251254,-207.42169598,0.000184,2]
[391022288,1760296251264,-325.23142663,0.000184,2]
[391022289,1760296251274,-269.91608199,0.00018438,2]
[391022290,1760296251284,-150.0,0.00018473,2]
[391022291,1760296251294,-300.0,0.00018499,2]
[391022292,1760296251305,-300.0,0.00018499,2]
[391022293,1760296251314,-300.0,0.00018499,2]
[391022294,1760296251323,-300.0,0.00018499,2]
[391022295,1760296251332,-300.0,0.00018499,2]
[391022296,1760296251342,-275355.46705881,0.000185,2]
[391022297,1760296251351,-239124.9027034,0.000185,2]
[391022298,1760296251360,-121024.781083,0.000185,2]
[391022299,1760296251370,-197384.85270438,0.000185,2]
[391022301,1760296253248,-151.0,0.00015,2]
[391022302,1760296253258,-151.0,0.00015,2]
[391022303,1760296253268,-280.93899997,0.000185,2]
[391022304,1760296253279,-1144.3153228,0.000185,2]
[391022305,1760296253290,-58922.7514896,0.000185,2]
[391022306,1760296253299,-33184.36004458,0.000185,2]
[391022307,1760296253309,-10128.67647879,0.000185,2]
[391022308,1760296253318,-207.42169598,0.000185,2]
[391022309,1760296253328,-325.23142663,0.000185,2]
[391022310,1760296253338,-392.26116688,0.0001852,2]
[391022311,1760296253349,-269.91608199,0.00018521,2]
[391022312,1760296253358,-500.0,0.00018562,2]
[391022313,1760296253367,-500.0,0.00018562,2]
[391022314,1760296253376,-2500.0,0.00018574,3]
[391022315,1760296253386,-2500.0,0.00018583,3]
[391022316,1760296253395,-1852.55,0.00018587,2]
[391022317,1760296253404,-2500.0,0.00018592,3]
[391022318,1760296253414,-475.28169836,0.000186,3]
[391022319,1760296253424,-2500.0,0.00018601,3]
[391022320,1760296253433,-2500.0,0.0001861,3]
[391022321,1760296253443,-5026.50122792,0.00018616,2]
[391022322,1760296253453,-2500.0,0.00018618,3]
[391022323,1760296253462,-2500.0,0.00018627,3]
[391022324,1760296253471,-2252.41,0.0001863,2]
[391022325,1760296253480,-465.3,0.0001863,2]
[391022326,1760296253490,-2500.0,0.00018636,3]
[391022327,1760296253499,-2500.0,0.00018645,3]
[391022328,1760296253508,-749.56052645,0.00018653,22]
[391022329,1760296253519,-2500.0,0.00018654,3]
[391022330,1760296253529,-2500.0,0.00018662,3]
[391022331,1760296253539,-300.0,0.00018667,2]
[391022332,1760296253549,-1500.0,0.00018668,2]
[391022333,1760296253559,-1501.39972105,0.00018668,2]
[391022334,1760296253568,-1299.14614282,0.00018668,2]
[391022335,1760296253578,-501.32262351,0.00018668,2]
[391022336,1760296253588,-706.84420695,0.00018668,2]
[391022337,1760296253598,-1500.0,0.00018668,2]
[391022338,1760296253607,-1264.55095596,0.00018668,2]
[391022339,1760296253617,-1500.0,0.00018668,2]
[391022340,1760296253626,-432.04910936,0.00018668,2]
[391022341,1760296253635,-1500.0,0.00018668,2]
[391022342,1760296253645,-500.56680021,0.00018668,2]
[391022343,1760296253654,-1500.0,0.00018668,2]
[391022344,1760296253663,-1500.0,0.00018668,2]
[391022345,1760296253672,-1500.0,0.00018668,2]
[391022346,1760296253682,-1500.0,0.00018668,2]
[391022347,1760296253692,-669.70046775,0.00018668,2]
[391022348,1760296253702,-1500.0,0.00018668,2]
[391022349,1760296253712,-1066.19069208,0.00018668,2]
[391022350,1760296253722,-1500.0,0.00018668,2]
[391022351,1760296253732,-1500.0,0.00018668,2]
[391022352,1760296253742,-1500.0,0.00018668,2]
[391022353,1760296253752,-1500.0,0.00018668,2]
[391022354,1760296253763,-1500.0,0.00018668,2]
[391022355,1760296253772,-2500.0,0.00018671,3]
[391022356,1760296253782,-2500.0,0.0001868,3]
[391022357,1760296253791,-2500.0,0.00018689,3]
[391022358,1760296253802,-298.26089446,0.00018691,2]
[391022359,1760296253811,-2500.0,0.00018698,3]
[391022360,1760296253821,-359.76179104,0.00018699,2]
[391022361,1760296253831,-1294.49,0.000187,7]
[391022362,1760296253841,-1955.26,0.000187,7]
[391022363,1760296253850,-10128.67647879,0.000187,2]
[391022364,1760296253860,-207.42169598,0.000187,2]
[391022365,1760296253869,-325.23142663,0.000187,2]
[391022366,1760296253879,-2500.0,0.00018706,3]
[391022367,1760296253893,-2500.0,0.00018715,3]
[391022368,1760296253902,-2500.0,0.00018724,3]
[391022369,1760296253912,-2500.0,0.00018733,3]
[391022370,1760296253921,-2500.0,0.00018742,3]
[391022371,1760296253933,-6405.23591994,0.00018748,3]
[391022372,1760296253943,-475.23572958,0.0001875,3]
[391022373,1760296253952,-2500.0,0.0001875,3]
[391022374,1760296253965,-2500.0,0.00018759,3]
[391022375,1760296253974,-1000.0,0.0001876,2]
[391022376,1760296253984,-2500.0,0.00018768,3]
[391022377,1760296253994,-2500.0,0.00018777,3]
[391022378,1760296254003,-191.40641208,0.0001878,2]
[391022379,1760296254013,-2500.0,0.00018786,3]
[391022380,1760296254022,-2500.0,0.00018794,3]
[391022381,1760296254032,-475.23572958,0.000188,3]
[391022382,1760296254042,-153.5,0.000188,2]
[391022383,1760296254053,-153.5,0.000188,2]
[391022384,1760296254062,-153.5,0.000188,2]
[391022385,1760296254072,-153.5,0.000188,2]
[391022386,1760296254082,-153.5,0.000188,2]
[391022387,1760296254091,-153.5,0.000188,2]
[391022388,1760296254100,-153.5,0.000188,2]
[391022389,1760296254110,-153.5,0.000188,2]
[391022390,1760296254120,-153.5,0.000188,2]
[391022391,1760296254130,-153.5,0.000188,2]
[391022392,1760296254139,-153.5,0.000188,2]
[391022393,1760296254149,-153.5,0.000188,2]
[391022394,1760296254158,-153.5,0.000188,2]
[391022395,1760296254168,-153.5,0.000188,2]
[391022396,1760296254177,-153.5,0.000188,2]
[391022397,1760296254187,-153.5,0.000188,2]
[391022398,1760296254200,-153.5,0.000188,2]
[391022399,1760296254210,-153.5,0.000188,2]
[391022400,1760296254220,-153.5,0.000188,2]
[391022401,1760296254229,-153.5,0.000188,2]
[391022402,1760296254240,-153.5,0.000188,2]
[391022403,1760296254250,-153.5,0.000188,2]
[391022404,1760296254259,-153.5,0.000188,2]
[391022405,1760296254269,-153.5,0.000188,2]
[391022406,1760296254279,-153.5,0.000188,2]
[391022407,1760296254289,-153.5,0.000188,2]
[391022408,1760296254299,-153.5,0.000188,2]
[391022409,1760296254308,-153.5,0.000188,2]
[391022410,1760296254318,-153.5,0.000188,2]
[391022411,1760296254328,-153.5,0.000188,2]
[391022412,1760296254339,-153.5,0.000188,2]
[391022413,1760296254348,-2500.0,0.00018803,3]
[391022414,1760296254360,-2500.0,0.00018812,3]
[391022415,1760296254372,-2500.0,0.00018821,3]
[391022416,1760296254382,-2500.0,0.0001883,3]
[391022417,1760296254393,-500.0,0.00018836,2]
[391022418,1760296254402,-500.0,0.00018836,2]
[391022419,1760296254413,-2500.0,0.00018838,3]
[391022420,1760296254423,-2500.0,0.00018847,3]
[391022421,1760296254434,-2036.45595,0.0001885,2]
[391022422,1760296254444,-2500.0,0.00018856,3]
[391022423,1760296254454,-1852.67162467,0.00018861,2]
[391022424,1760296254464,-2500.0,0.00018865,3]
[391022425,1760296254474,-2500.0,0.00018874,3]
[391022426,1760296254485,-1000.0,0.00018879,2]
[391022427,1760296254496,-300.0,0.00018879,2]
[391022428,1760296254507,-300.0,0.00018879,2]
[391022429,1760296254517,-300.0,0.00018879,2]
[391022430,1760296254527,-300.0,0.00018879,2]
[391022431,1760296254537,-113252.52706904,0.0001888,2]
[391022432,1760296282656,-260.36414836,0.00015,2]
[391022433,1760296282665,-151.0,0.00015,2]
[391022434,1760296282674,-151.0,0.00015,2]
[391022435,1760296282683,-153.52158866,0.00015,2]
[391022436,1760296282692,-152.802783,0.00015,2]
[391022437,1760296282701,-595.452961,0.00018,2]
[391022438,1760296282711,-1942.212005,0.00018247,2]
[391022439,1760296282720,-1942.212005,0.00018247,2]
[391022440,1760296282729,-1942.212005,0.00018247,2]
[391022441,1760296282738,-1942.212005,0.00018247,2]
[391022442,1760296282747,-1942.212005,0.00018247,2]
[391022443,1760296282756,-1942.212005,0.00018247,2]
[391022444,1760296282765,-1942.212005,0.00018247,2]
[391022445,1760296282774,-1942.21200157,0.00018247,2]
[391022446,1760296282783,-249636.05864175,0.0001888,2]
[391022447,1760296282793,-21921.59309765,0.0001888,2]
[391022448,1760296282802,-2500.0,0.00018882,3]
[391022449,1760296282812,-2500.0,0.00018891,3]
[391022450,1760296282821,-2500.0,0.000189,3]
[391022451,1760296282831,-475.28169836,0.000189,3]
[391022452,1760296282839,-1955.26,0.000189,7]
[391022453,1760296282848,-10128.67647879,0.000189,2]
[391022454,1760296282857,-184.82335355,0.000189,2]
[391022455,1760296282867,-2252.41,0.00018904,2]
[391022456,1760296282876,-465.3,0.00018904,2]
[391022457,1760296282885,-749.56052645,0.00018911,23]
[391022458,1760296282898,-823.0,0.00018928,2]
[391022459,1760296282907,-3292.0,0.00018965,2]
[391022460,1760296282916,-8000.00000001,0.00018999,7]
[391022461,1760296282925,-300.0,0.00018999,2]
[391022462,1760296282935,-154.80305778,0.00019,2]
[391022463,1760296282944,-32809.52149346,0.00019,4]
[391022464,1760296282953,-28512.50364533,0.00019,2]
[391022465,1760296282963,-5000.0,0.00019,2]
[391022466,1760296282976,-2769.32343948,0.00019,5]
[391022467,1760296282988,-1553.72598363,0.00019,2]
[391022468,1760296282999,-269.02697305,0.00019,7]
[391022469,1760296283008,-500.0,0.00019,2]
[391022470,1760296283018,-160.0,0.00019,7]
[391022471,1760296283027,-239122.08942358,0.00019,2]
[391022472,1760296283037,-3671.68255722,0.00019,2]
[391022473,1760296283047,-671997.80433369,0.00019,2]
[391022474,1760296283057,-671997.80433369,0.00019,2]
[391022475,1760296283066,-1364.9621309,0.00019,2]
[391022476,1760296283075,-300.0,0.00019,2]
[391022477,1760296283084,-500.0,0.00019,2]
[391022478,1760296283094,-200.3101707,0.00019021,2]
[391022479,1760296283104,-1600.0,0.00019077,2]
[391022480,1760296283115,-730.48322297,0.00019078,2]
[391022481,1760296283124,-1000.0,0.00019099,2]
[391022482,1760296283133,-1294.49,0.000191,7]
[391022483,1760296283143,-10128.67647879,0.000191,2]
[391022484,1760296283152,-500.0,0.0001911,2]
[391022485,1760296283161,-500.0,0.0001911,2]
[391022486,1760296283170,-9318.04,0.00019151,2]
[391022487,1760296283179,-749.56052645,0.00019168,25]
[391022488,1760296283188,-2252.41,0.00019178,2]
[391022489,1760296283197,-465.3,0.00019178,2]
[391022490,1760296283207,-499.999999,0.00019178,2]
[391022491,1760296283216,-3000.0,0.00019178,2]
[391022492,1760296283225,-3000.0,0.00019178,7]
[391022493,1760296283235,-2026.34239025,0.00019178,12]
[391022494,1760296283244,-151.0,0.00019178,2]
[391022495,1760296283253,-215.6,0.00019178,3]
[391022496,1760296283262,-201.0,0.00019178,2]
[391022497,1760296283272,-4000.0,0.00019178,2]
[391022498,1760296283282,-19373.75,0.00019178,2]
[391022499,1760296283292,-1500.0,0.00019178,14]
[391022500,1760296283301,-1500.0,0.00019178,14]
[391022501,1760296283311,-1500.0,0.00019178,14]
[391022502,1760296283320,-1500.0,0.00019178,14]
[391022503,1760296283330,-1500.0,0.00019178,14]
[391022504,1760296283340,-1500.0,0.00019178,14]
[391022505,1760296283349,-1500.0,0.00019178,14]
[391022506,1760296283358,-1500.0,0.00019178,14]
[391022507,1760296283367,-1500.0,0.00019178,14]
[391022508,1760296283377,-1500.0,0.00019178,14]
[391022509,1760296283386,-1500.0,0.00019178,14]
[391022510,1760296283395,-1500.0,0.00019178,14]
[391022511,1760296283405,-1500.0,0.00019178,14]
[391022512,1760296283415,-1500.0,0.00019178,14]
[391022513,1760296283425,-1500.0,0.00019178,14]
[391022514,1760296283435,-1500.0,0.00019178,14]
[391022515,1760296283444,-1500.0,0.00019178,14]
[391022516,1760296283454,-1500.0,0.00019178,14]
[391022517,1760296283464,-1500.0,0.00019178,14]
[391022518,1760296283473,-1500.0,0.00019178,14]
[391022519,1760296283482,-1500.0,0.00019178,14]
[391022520,1760296283492,-1500.0,0.00019178,14]
[391022521,1760296283501,-1500.0,0.00019178,14]
[391022522,1760296283511,-1500.0,0.00019178,14]
[391022523,1760296283520,-1500.0,0.00019178,14]
[391022524,1760296283528,-1500.0,0.00019178,14]
[391022525,1760296283539,-1500.0,0.00019178,14]
[391022526,1760296283548,-1500.0,0.00019178,14]
[391022527,1760296283557,-1500.0,0.00019178,14]
[391022528,1760296283566,-1500.0,0.00019178,14]
[391022529,1760296283576,-1500.0,0.00019178,14]
[391022530,1760296283584,-1500.0,0.00019178,14]
[391022531,1760296283595,-1500.0,0.00019178,14]
[391022532,1760296283608,-1500.0,0.00019178,14]
[391022533,1760296283617,-1500.0,0.00019178,14]
[391022534,1760296283627,-1500.0,0.00019178,14]
[391022535,1760296283636,-1500.0,0.00019178,14]
[391022536,1760296283645,-1500.0,0.00019178,14]
[391022537,1760296283654,-1500.0,0.00019178,14]
[391022538,1760296283663,-1500.0,0.00019178,14]
[391022539,1760296283672,-1500.0,0.00019178,14]
[391022540,1760296283681,-1500.0,0.00019178,14]
[391022541,1760296283690,-1500.0,0.00019178,14]
[391022542,1760296283700,-1500.0,0.00019178,14]
[391022543,1760296283710,-1500.0,0.00019178,14]
[391022544,1760296283719,-1500.0,0.00019178,14]
[391022545,1760296283729,-1500.0,0.00019178,14]
[391022546,1760296283738,-1500.0,0.00019178,14]
[391022547,1760296283747,-1500.0,0.00019178,14]
[391022548,1760296283756,-1500.0,0.00019178,14]
[391022549,1760296283766,-1500.0,0.00019178,14]
[391022550,1760296283775,-1500.0,0.00019178,14]
[391022551,1760296283785,-1500.0,0.00019178,14]